bitfinex/quotes_SOLUSD_20250217
["timestamp","ask_amount","ask_price","bid_price","bid_amount"]
[1739761931002,14.14469932,186.42,186.37,5.3654]
[1739761932212,14.14469932,186.42,186.37,5.3954]
[1739761932414,0.063,186.43,186.38,14.14469932]
[1739761932613,0.063,186.43,186.39,14.14469932]
[1739761933003,0.063,186.43,186.4,14.14469932]
[1739761933202,0.063,186.43,186.41,14.14469932]
[1739761933803,0.063,186.43,186.42,14.14469932]
[1739761934931,0.063,186.43,186.41,14.14469932]
[1739761935935,0.063,186.43,186.42,5.3642]
[1739761936316,0.063,186.43,186.42,19.50889932]
[1739761936530,0.063,186.43,186.42,32.92074785]
[1739761937136,0.063,186.43,186.42,38.94334785]
[1739761937534,0.063,186.46,186.45,20.0]
[1739761937831,0.063,186.46,186.45,52.91984785]
[1739761940730,0.063,186.56,186.46,13.41184853]
[1739761940923,0.063,186.56,186.52,14.14469932]
[1739761941517,0.063,186.56,186.53,5.361]
[1739761941944,0.063,186.56,186.5,14.14469932]
[1739761941945,14.20769932,186.56,186.5,14.14469932]
[1739761942309,14.14469932,186.55,186.49,14.14469932]
[1739761942926,14.20769932,186.56,186.5,14.14469932]
[1739761943412,14.14469932,186.53,186.47,19.50719932]
[1739761944119,14.14469932,186.54,186.48,14.14469932]
[1739761944726,14.14469932,186.52,186.46,14.14469932]
[1739761945040,14.14469932,186.52,186.46,19.50769932]
[1739761945337,14.14469932,186.53,186.47,19.50729932]
[1739761945539,14.14469932,186.53,186.47,14.14469932]
[1739761945717,19.50569932,186.53,186.47,14.14469932]
[1739761946144,14.14469932,186.53,186.47,19.50729932]
[1739761946438,14.14469932,186.5,186.43,14.14469932]
[1739761946641,5.3612,186.53,186.43,14.14469932]
[1739761946642,14.14469932,186.49,186.43,14.14469932]
[1739761946843,14.14469932,186.49,186.43,19.50859932]
[1739761947736,14.14469932,186.49,186.43,14.14469932]
[1739761947947,14.14469932,186.48,186.42,5.3941]
[1739761948240,14.14469932,186.44,186.42,0.03]
[1739761948411,14.14469932,186.43,186.42,0.03]
[1739761949926,14.14469932,186.44,186.42,0.03]
[1739761950519,14.14469932,186.43,186.42,0.03]
[1739761950919,15.14469932,186.43,186.42,0.03]
[1739761951120,14.14469932,186.43,186.42,0.03]
[1739761951446,19.50859932,186.43,186.42,0.03]
[1739761952038,14.14469932,186.44,186.42,0.03]
[1739761952247,14.14469932,186.46,186.42,0.03]
[1739761952643,14.14469932,186.47,186.42,0.03]
[1739761953042,14.14469932,186.48,186.42,14.17469932]
[1739761953228,14.14469932,186.5,186.44,14.14469932]
[1739761953435,14.14469932,186.51,186.44,14.14469932]
[1739761953637,14.14469932,186.51,186.44,19.50819932]
[1739761953836,14.14469932,186.51,186.45,14.14469932]
[1739761954150,14.14469932,186.52,186.46,14.14469932]
[1739761954538,5.3607,186.54,186.43,14.14469932]
[1739761954539,14.14469932,186.49,186.43,14.14469932]
[1739761955035,14.14469932,186.5,186.44,14.14469932]
[1739761955438,14.14469932,186.5,186.44,19.50799932]
[1739761956153,14.14469932,186.52,186.45,14.14469932]
[1739761956332,14.14469932,186.54,186.47,14.14469932]
[1739761956537,5.4237,186.55,186.48,14.14469932]
[1739761956538,14.20769932,186.55,186.48,14.14469932]
[1739761956843,14.14469932,186.52,186.46,14.14469932]
[1739761957556,0.063,186.55,186.47,5.3627]
[1739761957557,14.14469932,186.53,186.47,5.3627]
[1739761958837,14.14469932,186.53,186.47,14.14469932]
[1739761959156,14.20769932,186.55,186.48,14.14469932]
[1739761959353,0.063,186.55,186.5,14.14469932]
[1739761959835,14.20769932,186.55,186.49,14.14469932]
[1739761960234,14.20769932,186.55,186.5,5.3619]
[1739761960637,14.14469932,186.54,186.48,19.50689932]
[1739761962449,0.063,186.55,186.5,14.14469932]
[1739761962850,14.14469932,186.54,186.48,19.50689932]
[1739761963148,14.14469932,186.54,186.48,5.3622]
[1739761963539,14.14469932,186.54,186.47,14.14469932]
[1739761963847,14.14469932,186.5,186.44,14.14469932]
[1739761964032,14.14469932,186.49,186.43,22.47779445]
[1739761964352,14.14469932,186.49,186.44,5.3635]
[1739761964542,14.14469932,186.5,186.44,19.50819932]
[1739761965458,14.14469932,186.51,186.45,14.14469932]
[1739761965642,14.14469932,186.52,186.45,14.14469932]
[1739761966543,0.063,186.5,186.47,5.3627]
[1739761967243,14.20769932,186.5,186.45,5.363]
[1739761967755,0.063,186.5,186.47,14.14469932]
[1739761967942,0.063,186.5,186.48,14.14469932]
[1739761968350,0.063,186.5,186.47,14.14469932]
[1739761968549,0.063,186.5,186.48,5.3625]
[1739761969458,0.063,186.5,186.48,19.50719932]
[1739761969755,0.063,186.5,186.49,14.14469932]
[1739761969958,0.063,186.5,186.49,27.55654785]
[1739761970363,0.063,186.5,186.49,14.14469932]
[1739761970565,0.063,186.5,186.49,19.50689932]
[1739761974053,0.04389687,186.56,186.5,14.14469932]
[1739761974357,0.04389687,186.56,186.51,5.3616]
[1739761975071,0.04389687,186.56,186.53,14.14469932]
[1739761975564,0.04389687,186.56,186.51,5.3616]
[1739761975565,0.04389687,186.56,186.52,14.14469932]
[1739761978777,14.14469932,186.54,186.49,5.3622]
[1739761979975,14.14469932,186.55,186.49,5.3622]
[1739761980274,14.18859619,186.56,186.49,19.50689932]
[1739761981273,14.18859619,186.56,186.5,14.14469932]
[1739761981584,0.04389687,186.56,186.51,5.3616]
[1739761981958,14.18859619,186.56,186.51,5.3616]
[1739761982479,14.14469932,186.55,186.49,18.77404853]
[1739761982975,14.14469932,186.54,186.49,18.77404853]
[1739761983553,14.14469932,186.5,186.47,5.3625]
[1739761984675,14.14469932,186.5,186.45,18.77514853]
[1739761984876,14.14469932,186.51,186.45,18.77514853]
[1739761985067,14.14469932,186.51,186.45,32.91984785]
[1739761985380,14.14469932,186.53,186.46,14.14469932]
[1739761985557,14.14469932,186.53,186.47,5.3627]
[1739761985759,14.14469932,186.55,186.48,27.55654785]
[1739761986650,14.14469932,186.55,186.49,14.14469932]
[1739761987570,14.14469932,186.55,186.5,5.3619]
[1739761987779,0.04389687,186.56,186.51,14.14469932]
[1739761987966,0.04389687,186.56,186.52,27.55654785]
[1739761988479,0.04389687,186.56,186.52,13.41184853]
[1739761989761,0.04389687,186.56,186.53,5.361]
[1739761990883,0.063,186.55,186.53,5.361]
[1739761997564,0.063,186.55,186.54,33.61604785]
[1739761999372,0.063,186.55,186.54,38.97674785]
[1739762001174,0.04389687,186.56,186.54,39.78039001]
[1739762001480,9.687e-05,186.56,186.55,27.55654785]
[1739762001690,9.687e-05,186.56,186.55,32.91694785]
[1739762002270,0.063,186.62,186.59,27.55654785]
[1739762003690,0.063,186.62,186.61,13.41184853]
[1739762004187,0.063,186.62,186.61,27.55654785]
[1739762005688,0.063,186.62,186.61,32.91524785]
[1739762009186,0.063,186.62,186.6,14.14469932]
[1739762009393,0.063,186.62,186.57,19.50459932]
[1739762010298,14.20769932,186.62,186.57,5.3599]
[1739762010975,0.063,186.62,186.57,19.50459932]
[1739762012492,14.14469932,186.61,186.55,19.50489932]
[1739762012680,14.14469932,186.6,186.55,5.3602]
[1739762013198,14.14469932,186.6,186.53,27.55654785]
[1739762013379,14.14469932,186.59,186.53,32.91734785]
[1739762013695,14.14469932,186.6,186.54,14.14469932]
[1739762013880,14.14469932,186.61,186.55,27.55654785]
[1739762014199,0.063,186.62,186.59,14.14469932]
[1739762014576,0.063,186.62,186.59,19.50399932]
[1739762014979,0.063,186.62,186.61,14.14469932]
[1739762016296,0.063,186.62,186.61,27.55654785]
[1739762016593,0.063,186.62,186.61,32.91524785]
[1739762017499,0.063,186.62,186.61,19.50339932]
[1739762017702,0.063,186.62,186.61,5.3587]
[1739762019088,0.063,186.62,186.61,32.91524785]
[1739762019884,0.063,186.62,186.61,33.71874116]
[1739762020087,0.063,186.62,186.61,35.27114116]
[1739762020904,0.063,186.65,186.64,20.0]
[1739762021116,0.063,186.65,186.64,42.48485448]
[1739762023077,0.063,186.65,186.64,48.64601178]
[1739762023806,0.0001,186.67,186.65,13.41184853]
[1739762024001,0.0001,186.67,186.66,14.14469932]
[1739762024210,0.0001,186.67,186.66,27.55654785]
[1739762025285,0.0001,186.67,186.66,32.91384785]
[1739762026309,0.0001,186.67,186.66,27.55654785]
[1739762026524,0.0001,186.67,186.66,13.41184853]
[1739762027106,0.0001,186.67,186.65,14.14469932]
[1739762027313,0.0001,186.67,186.64,27.55654785]
[1739762027619,14.14469932,186.66,186.6,14.14469932]
[1739762027811,14.14469932,186.65,186.59,14.14469932]
[1739762028687,14.14469932,186.66,186.6,14.14469932]
[1739762028899,14.14479932,186.67,186.61,14.14469932]
[1739762029113,0.0001,186.67,186.62,14.14469932]
[1739762030393,0.0001,186.67,186.62,19.50309932]
[1739762032414,0.0001,186.67,186.62,14.14469932]
[1739762032623,14.14469932,186.66,186.6,14.14469932]
[1739762032916,14.14469932,186.64,186.58,19.50409932]
[1739762033113,14.14469932,186.64,186.59,20.0]
[1739762033419,14.14469932,186.66,186.6,14.14469932]
[1739762034618,14.14479932,186.67,186.61,14.14469932]
[1739762035493,14.14479932,186.67,186.61,19.50309932]
[1739762036013,0.0001,186.67,186.62,14.14469932]
[1739762036202,0.0001,186.67,186.63,14.14469932]
[1739762037110,0.0001,186.67,186.66,14.14469932]
[1739762037806,0.0001,186.67,186.66,19.50199932]
[1739762038699,0.0001,186.67,186.66,32.91384785]
[1739762040206,14.14469932,186.72,186.66,19.50199932]
[1739762040421,14.14469932,186.7,186.65,5.3576]
[1739762041503,14.14469932,186.7,186.64,19.50249932]
[1739762042021,14.14469932,186.69,186.64,5.3578]
[1739762042611,14.14469932,186.65,186.63,0.03]
[1739762042811,14.14469932,186.66,186.63,0.03]
[1739762042992,0.0121,186.74,186.64,14.14469932]
[1739762043197,14.14469932,186.72,186.66,14.14469932]
[1739762043712,14.14469932,186.73,186.66,14.14469932]
[1739762043903,14.14469932,186.72,186.66,14.14469932]
[1739762044117,14.15679932,186.74,186.68,14.14469932]
[1739762044313,0.0121,186.74,186.69,14.14469932]
[1739762044819,0.0121,186.74,186.71,14.14469932]
[1739762046314,0.0121,186.74,186.72,5.3556]
[1739762047821,0.0121,186.74,186.72,19.50029932]
[1739762048504,0.0121,186.74,186.72,5.3556]
[1739762048698,0.0121,186.74,186.71,5.3558]
[1739762048900,0.0121,186.74,186.69,19.50089932]
[1739762049212,0.0121,186.74,186.7,14.14469932]
[1739762049724,0.0121,186.74,186.71,14.14469932]
[1739762049907,0.0121,186.74,186.72,5.3556]
[1739762051021,0.0121,186.74,186.73,14.14469932]
[1739762052730,0.0121,186.74,186.72,5.3556]
[1739762052917,0.0121,186.74,186.7,14.14469932]
[1739762053109,0.02,186.75,186.73,21.90039932]
[1739762053305,0.02,186.75,186.74,14.14469932]
[1739762053634,0.02,186.75,186.74,27.55654785]
[1739762054815,0.02,186.75,186.74,32.91154785]
[1739762056922,0.02,186.75,186.74,19.49969932]
[1739762057211,4.28,186.75,186.74,19.49969932]
[1739762057726,4.28,186.75,186.7,19.50079932]
[1739762057910,0.02,186.75,186.7,5.3561]
[1739762058619,0.02,186.75,186.7,19.50079932]
[1739762058823,0.02,186.75,186.71,14.14469932]
[1739762059331,0.02,186.75,186.74,14.14469932]
[1739762059516,0.02,186.75,186.74,27.55654785]
[1739762060727,0.02,186.75,186.71,14.14469932]
[1739762062606,0.02,186.75,186.69,14.14469932]
[1739762062820,14.14469932,186.74,186.68,18.76834853]
[1739762063110,14.14469932,186.73,186.67,14.14469932]
[1739762063313,14.14469932,186.73,186.66,14.17469932]
[1739762063515,14.14469932,186.71,186.66,0.03]
[1739762064838,22.56831474,186.71,186.66,0.03]
[1739762066031,0.02,186.75,186.66,0.03]
[1739762066032,22.56831474,186.72,186.66,22.59831474]
[1739762066233,22.56831474,186.73,186.67,22.56831474]
[1739762066441,22.56831474,186.73,186.68,5.3567]
[1739762066644,22.56831474,186.74,186.68,27.92501474]
[1739762066834,0.02,186.75,186.67,22.56831474]
[1739762066835,22.56831474,186.73,186.67,22.56831474]
[1739762067942,22.58831474,186.75,186.69,22.56831474]
[1739762068848,0.02,186.75,186.7,22.56831474]
[1739762069052,0.02,186.75,186.72,22.56831474]
[1739762069223,0.02,186.75,186.73,22.56831474]
[1739762069826,0.02,186.75,186.74,22.56831474]
[1739762070647,0.02,186.75,186.73,22.56831474]
[1739762070848,0.02,186.75,186.73,27.92351474]
[1739762071736,0.02,186.75,186.72,27.92371474]
[1739762072447,0.02,186.75,186.7,27.92421474]
[1739762072647,22.56831474,186.73,186.67,27.92531474]
[1739762072955,22.56831474,186.72,186.67,5.357]
[1739762073125,22.56831474,186.73,186.67,27.92531474]
[1739762073447,22.56831474,186.74,186.68,22.56831474]
[1739762074623,22.56831474,186.74,186.69,5.3564]
[1739762075829,22.56831474,186.7,186.68,0.03]
[1739762076344,22.56831474,186.71,186.68,0.03]
[1739762076547,22.56831474,186.72,186.68,0.03]
[1739762077144,22.56831474,186.72,186.68,5.3867]
[1739762077828,22.56831474,186.72,186.68,0.03]
[1739762078031,1.5206,186.75,186.68,0.03]
[1739762078032,22.56831474,186.71,186.68,0.03]
[1739762079352,22.56831474,186.72,186.68,0.03]
[1739762080339,22.56831474,186.71,186.68,0.03]
[1739762080957,22.56831474,186.7,186.68,0.03]
[1739762081331,22.56831474,186.71,186.68,0.03]
[1739762081551,22.56831474,186.73,186.68,0.03]
[1739762083750,22.56831474,186.72,186.68,0.03]
[1739762083926,22.56831474,186.69,186.68,0.03]
[1739762084628,14.10849904,186.69,186.68,0.03]
[1739762087253,19.46489904,186.69,186.68,0.03]
[1739762094651,14.10849904,186.69,186.68,0.03]
[1739762102463,19.46489904,186.69,186.68,0.03]
[1739762103267,14.10849904,186.69,186.68,0.03]
[1739762103466,19.46489904,186.69,186.68,0.03]
[1739762106764,14.10849904,186.69,186.68,0.03]
[1739762107065,150.60849904,186.71,186.68,0.03]
[1739762107374,5.3553,186.73,186.68,0.03]
[1739762107375,14.10849904,186.73,186.68,0.03]
[1739762107867,14.10849904,186.74,186.68,14.13849904]
[1739762108257,0.02,186.75,186.71,14.10849904]
[1739762108462,0.02,186.75,186.73,14.10849904]
[1739762109048,0.02,186.75,186.72,14.10849904]
[1739762109260,0.02,186.75,186.7,14.10849904]
[1739762109670,0.02,186.75,186.71,14.10849904]
[1739762110756,0.02,186.75,186.69,14.10849904]
[1739762110757,14.12849904,186.75,186.69,14.10849904]
[1739762110960,14.10849904,186.71,186.68,0.03]
[1739762111184,14.10849904,186.69,186.68,0.03]
[1739762111966,14.10849904,186.71,186.68,0.03]
[1739762112387,14.10849904,186.73,186.68,0.03]
[1739762112683,14.12849904,186.75,186.69,14.10849904]
[1739762112860,14.12849904,186.75,186.68,14.13849904]
[1739762113066,14.10849904,186.71,186.68,0.03]
[1739762113659,0.02,186.75,186.68,0.03]
[1739762113660,14.10849904,186.72,186.68,0.03]
[1739762114387,14.10849904,186.73,186.68,0.03]
[1739762119482,14.10849904,186.74,186.68,0.03]
[1739762119652,0.02,186.75,186.69,14.10849904]
[1739762119859,14.12849904,186.75,186.7,5.3561]
[1739762121082,14.12849904,186.75,186.69,14.10849904]
[1739762121976,0.02,186.75,186.69,19.46479904]
[1739762122149,0.02,186.75,186.72,14.10849904]
[1739762122566,0.02,186.75,186.73,14.10849904]
[1739762122770,0.02,186.75,186.74,14.10849904]
[1739762124101,0.02,186.75,186.74,26.02829904]
[1739762125614,0.02,186.75,186.73,1.6076]
[1739762125901,14.10849904,186.74,186.69,11.9212]
[1739762126279,14.10849904,186.74,186.69,6.5648]
[1739762127403,14.10849904,186.74,186.69,11.9212]
[1739762127602,14.12849904,186.75,186.69,11.9212]
[1739762127811,14.12849904,186.75,186.69,26.02969904]
[1739762128491,14.12849904,186.75,186.68,1.6376]
[1739762128492,14.10849904,186.7,186.68,0.03]
[1739762128725,14.10849904,186.71,186.68,0.03]
[1739762128915,14.10849904,186.72,186.68,0.03]
[1739762129206,14.10849904,186.74,186.68,19.49519904]
[1739762129791,14.10849904,186.74,186.68,5.3867]
[1739762130906,14.10849904,186.74,186.68,0.03]
[1739762131113,14.10849904,186.73,186.68,0.03]
[1739762131692,14.10849904,186.74,186.68,0.03]
[1739762132507,14.10849904,186.73,186.68,0.03]
[1739762133625,5.3554,186.73,186.68,0.03]
[1739762133909,14.10849904,186.69,186.68,0.03]
[1739762134094,14.10849904,186.7,186.68,0.03]
[1739762134297,14.10849904,186.71,186.68,0.03]
[1739762136703,14.10849904,186.69,186.68,0.03]
[1739762137323,14.10849904,186.7,186.68,0.03]
[1739762137525,19.46439904,186.71,186.68,0.03]
[1739762138322,14.10849904,186.71,186.68,0.03]
[1739762138622,14.10849904,186.72,186.68,0.03]
[1739762138822,19.46409904,186.72,186.68,0.03]
[1739762139024,14.10849904,186.71,186.68,0.03]
[1739762139320,14.10849904,186.7,186.68,0.03]
[1739762139531,5.3556,186.72,186.68,0.03]
[1739762139532,14.10849904,186.69,186.68,0.03]
[1739762139698,19.46489904,186.69,186.68,0.03]
[1739762142119,14.10849904,186.69,186.68,0.03]
[1739762142317,19.46489904,186.69,186.68,0.03]
[1739762145912,34.87674757,186.69,186.68,0.03]
[1739762146101,65.41184853,186.67,186.66,0.03]
[1739762146305,79.52034757,186.67,186.66,0.03]
[1739762146511,78.52034757,186.67,186.66,0.03]
[1739762146823,77.52034757,186.67,186.66,0.03]
[1739762147025,78.52034757,186.67,186.66,0.03]
[1739762147604,83.87734757,186.67,186.66,0.03]
[1739762148230,69.46549904,186.67,186.66,0.03]
[1739762149807,39.46549904,186.67,186.66,0.03]
[1739762150806,34.10849904,186.67,186.66,0.03]
[1739762151005,39.46549904,186.67,186.66,0.03]
[1739762152429,34.10849904,186.67,186.66,0.03]
[1739762152740,39.46549904,186.67,186.66,0.03]
[1739762158633,34.38969292,186.67,186.66,0.03]
[1739762162149,29.03269292,186.67,186.66,0.03]
[1739762162358,9.03269292,186.67,186.66,0.03]
[1739762163049,9.03269292,186.69,186.66,0.03]
[1739762163253,9.03269292,186.7,186.66,0.03]
[1739762163915,9.03269292,186.69,186.66,0.03]
[1739762164432,0.03333582,186.68,186.66,0.03]
[1739762164831,0.03333582,186.68,186.66,9.06269292]
[1739762165139,0.03333582,186.68,186.66,0.03]
[1739762166539,0.03333582,186.68,186.66,14.41969292]
[1739762167324,0.03333582,186.68,186.67,9.03269292]
[1739762168639,0.03333582,186.68,186.67,14.38969292]
[1739762173085,0.03333582,186.68,186.67,20.83509292]
[1739762173378,0.03333582,186.68,186.67,35.83974145]
[1739762175464,0.03333582,186.68,186.67,17.07089292]
[1739762175667,0.03333582,186.68,186.67,8.0382]
[1739762175853,0.03333582,186.68,186.67,22.42789292]
[1739762176253,0.03333582,186.68,186.67,17.07089292]
[1739762177983,0.03333582,186.68,186.67,22.42789292]
[1739762178480,0.03333582,186.68,186.67,17.07089292]
[1739762179478,0.063,186.7,186.67,8.0382]
[1739762179995,0.063,186.68,186.66,0.03]
[1739762180150,9.03269292,186.67,186.66,0.03]
[1739762181985,44.38969292,186.67,186.66,0.03]
[1739762183085,181.88969292,186.67,186.66,0.03]
[1739762183583,195.30154145,186.67,186.66,0.03]
[1739762184083,59.80154145,186.67,186.66,0.03]
[1739762186372,50.0,186.64,186.63,0.03]
[1739762186575,73.44454145,186.64,186.63,0.03]
[1739762186775,73.44454145,186.64,186.56,0.03]
[1739762186776,30.0,186.6,186.56,0.03]
[1739762186967,9.03269292,186.57,186.56,0.03]
[1739762188684,9.03269292,186.58,186.56,0.03]
[1739762188889,9.03269292,186.6,186.56,0.03]
[1739762190990,9.03269292,186.57,186.56,0.03]
[1739762192982,9.03269292,186.58,186.56,0.03]
[1739762193565,9.03269292,186.59,186.56,0.03]
[1739762193763,9.03269292,186.58,186.56,0.03]
[1739762194788,9.03269292,186.57,186.56,0.03]
[1739762195383,39.03269292,186.57,186.56,0.03]
[1739762196698,44.39259292,186.57,186.56,0.03]
[1739762197572,45.39259292,186.57,186.56,0.03]
[1739762197778,59.80444145,186.57,186.56,0.03]
[1739762197979,30.0,186.54,186.53,0.03]
[1739762198189,39.03269292,186.54,186.53,0.03]
[1739762198591,44.13626018,186.54,186.53,0.03]
[1739762198785,49.49696018,186.54,186.53,0.03]
[1739762199199,63.90880871,186.54,186.53,0.03]
[1739762199797,64.90880871,186.54,186.53,0.03]
[1739762201381,71.23510871,186.54,186.53,0.03]
[1739762201586,30.0,186.5,186.49,0.03]
[1739762201888,72.68436889,186.5,186.49,0.03]
[1739762202794,1.0,186.49,186.47,0.03]
[1739762202987,14.13626018,186.49,186.47,0.03]
[1739762203301,19.49846018,186.49,186.47,0.03]
[1739762205407,33.91030871,186.49,186.47,0.03]
[1739762205577,34.91030871,186.49,186.47,0.03]
[1739762205783,45.41184853,186.48,186.47,0.03]
[1739762205984,59.54810871,186.48,186.47,0.03]
[1739762208503,64.91060871,186.48,186.47,0.03]
[1739762209786,43.41184853,186.43,186.37,0.03]
[1739762209987,194.04810871,186.43,186.37,0.03]
[1739762211806,199.41200871,186.43,186.37,0.03]
[1739762213289,200.41200871,186.43,186.37,0.03]
[1739762213490,30.0,186.38,186.37,0.03]
[1739762213710,44.13626018,186.38,186.37,0.03]
[1739762214904,62.91340871,186.38,186.37,0.03]
[1739762216410,43.41184853,186.35,186.34,0.03]
[1739762216607,57.54810871,186.35,186.34,0.03]
[1739762216909,30.0,186.31,186.3,0.03]
[1739762217110,44.13626018,186.31,186.3,0.03]
[1739762219510,14.13626018,186.31,186.3,0.03]
[1739762220300,44.13626018,186.31,186.3,0.03]
[1739762220912,14.13626018,186.31,186.3,0.03]
[1739762221114,14.13626018,186.32,186.3,0.03]
[1739762221327,14.13626018,186.33,186.3,0.03]
[1739762223290,14.13626018,186.34,186.3,0.03]
[1739762223538,14.13626018,186.34,186.3,6.2108]
[1739762223811,14.13626018,186.33,186.3,6.2108]
[1739762224007,14.13626018,186.34,186.3,6.2108]
[1739762224803,14.13626018,186.33,186.3,6.2108]
[1739762225532,14.13626018,186.34,186.3,6.2108]
[1739762228120,0.063,186.34,186.3,11.5784]
[1739762228323,0.063,186.34,186.3,6.2108]
[1739762228504,32.97780871,186.34,186.3,0.03]
[1739762228708,9.06429072,186.31,186.3,0.03]
[1739762230001,27.84343925,186.31,186.3,0.03]
[1739762230206,57.84343925,186.31,186.3,0.03]
[1739762231623,58.84343925,186.31,186.3,0.03]
[1739762232618,78.12839487,186.31,186.3,0.03]
[1739762232828,79.12839487,186.31,186.3,0.03]
[1739762233703,30.0,186.27,186.22,6.1808]
[1739762233903,14.17462317,186.23,186.22,6.1808]
[1739762234305,14.17462317,186.24,186.22,6.1808]
[1739762235730,14.17462317,186.23,186.22,6.1808]
[1739762236229,14.17462317,186.23,186.18,8.0242]
[1739762236409,14.17462317,186.22,186.18,8.0242]
[1739762236610,14.17462317,186.21,186.18,8.0242]
[1739762237141,14.17462317,186.2,186.18,8.0242]
[1739762237436,14.17462317,186.19,186.18,8.0242]
[1739762237644,14.17462317,186.19,186.18,1.636]
[1739762238010,19.54542317,186.19,186.18,1.636]
[1739762238339,19.54512317,186.2,186.18,1.636]
[1739762239435,14.17462317,186.19,186.18,1.636]
[1739762239614,5.3711,186.18,186.14,6.3882]
[1739762239950,14.17462317,186.16,186.14,6.3882]
[1739762240119,14.17462317,186.15,186.14,6.3882]
[1739762241361,14.17462317,186.16,186.14,6.3882]
[1739762241629,44.17462317,186.17,186.14,6.3882]
[1739762241833,19.54612317,186.17,186.14,6.3882]
[1739762242037,14.17462317,186.18,186.14,6.3882]
[1739762242340,14.17462317,186.17,186.14,6.3882]
[1739762243233,14.17462317,186.18,186.14,6.3882]
[1739762243547,14.17462317,186.19,186.14,6.3882]
[1739762243720,19.54552317,186.19,186.14,6.3882]
[1739762243925,14.17462317,186.19,186.14,6.3882]
[1739762244330,30.0,186.2,186.14,25.93502317]
[1739762244745,14.17462317,186.19,186.14,6.3882]
[1739762245253,14.17462317,186.17,186.14,6.3882]
[1739762246032,14.17462317,186.18,186.14,6.3882]
[1739762246232,14.17462317,186.19,186.14,11.7604]
[1739762246441,14.17462317,186.2,186.14,25.93502317]
[1739762247535,14.17462317,186.19,186.14,6.3882]
[1739762247835,14.17462317,186.18,186.14,6.3882]
[1739762248030,5.3708,186.19,186.14,6.3882]
[1739762248247,14.17462317,186.18,186.14,6.3882]
[1739762248722,14.17462317,186.19,186.14,6.3882]
[1739762249150,35.3705,186.2,186.14,6.3882]
[1739762249354,14.17462317,186.17,186.14,6.3882]
[1739762249729,35.3705,186.2,186.14,6.4182]
[1739762249938,14.17462317,186.17,186.14,6.4182]
[1739762250847,14.17462317,186.22,186.15,14.17462317]
[1739762251353,14.17462317,186.22,186.16,14.17462317]
[1739762251523,14.17462317,186.21,186.15,14.17462317]
[1739762251725,14.17462317,186.18,186.14,6.4182]
[1739762252740,44.17462317,186.15,186.14,0.03]
[1739762254141,49.54662317,186.15,186.14,0.03]
[1739762254733,44.4576452,186.15,186.14,0.03]
[1739762255335,58.86949373,186.15,186.14,0.03]
[1739762255547,58.86949373,186.15,186.11,0.03]
[1739762255548,30.0,186.12,186.11,0.03]
[1739762255753,39.0856452,186.12,186.11,0.03]
[1739762256453,44.4584452,186.12,186.11,0.03]
[1739762256656,49.57531108,186.12,186.11,0.03]
[1739762258248,49.57531108,186.12,186.04,6.4759]
[1739762258249,30.0,186.08,186.04,6.4759]
[1739762258428,14.20251108,186.07,186.04,6.4759]
[1739762258628,19.57651108,186.08,186.04,6.4759]
[1739762259055,14.20251108,186.07,186.04,6.4759]
[1739762259759,19.57651108,186.08,186.04,6.4759]
[1739762260265,14.20251108,186.08,186.04,6.4759]
[1739762260951,14.20251108,186.07,186.04,6.4759]
[1739762261350,14.20251108,186.08,186.04,6.4759]
[1739762262259,14.20251108,186.07,186.04,6.4759]
[1739762263244,14.20251108,186.08,186.04,6.4759]
[1739762265065,19.57631108,186.09,186.04,6.4759]
[1739762265443,14.20251108,186.09,186.04,6.4759]
[1739762265647,14.20251108,186.1,186.04,26.05351108]
[1739762265847,14.20251108,186.09,186.04,6.4759]
[1739762266554,14.20251108,186.08,186.04,6.4759]
[1739762269861,5.3738,186.09,186.04,6.4759]
[1739762270166,14.20251108,186.1,186.04,6.4759]
[1739762270471,14.20251108,186.08,186.04,6.4759]
[1739762271775,19.57651108,186.09,186.04,6.4759]
[1739762274059,14.20251108,186.08,186.04,6.4759]